[Event "The Schackveckan 2023: Göteborg open"]
[Site "Göteborgs schackcentrum, Vegagatan 20, Gothenburg, Sweden"]
[Date "2023.08.12"]
[Round "5.4"]
[White "Eriksson, Kristian"]
[Black "Krantz, Martin"]
[Result "1/2-1/2"]
[TimeControl "15 minutes + 5 seconds per move from move one (Round 1 - 4) / 90 minutes + 30 seconds per move from move one (Round 5 - 8)"]
[WhiteFideId "1705172"]
[BlackFideId "1724100"]
[WhiteElo "2057"]
[BlackElo "2000"]

1. e4 {[%clk 01:30:55]} {[%emt 00:00:04]} c5 {[%clk 01:30:54]} {[%emt
00:00:08]} 2. Nf3 {[%clk 01:31:03]} {[%emt 00:00:21]} Nc6 {[%clk 01:31:15]}
{[%emt 00:00:08]} 3. Bb5 {[%clk 01:31:23]} {[%emt 00:00:11]} Nf6 {[%clk
01:31:25]} {[%emt 00:00:19]} 4. e5 {[%clk 01:29:16]} {[%emt 00:02:37]} Nd5
{[%clk 01:31:21]} {[%emt 00:00:34]} 5. O-O {[%clk 01:28:25]} {[%emt 00:01:21]}
g6 {[%clk 01:28:51]} {[%emt 00:03:01]} 6. Nc3 {[%clk 01:23:52]} {[%emt
00:05:04]} Nc7 {[%clk 01:22:26]} {[%emt 00:06:53]} 7. Bxc6 {[%clk 01:20:47]}
{[%emt 00:03:35]} dxc6 {[%clk 01:22:48]} {[%emt 00:00:09]} 8. Ne4 {[%clk
01:17:47]} {[%emt 00:03:29]} b6 {[%clk 01:15:50]} {[%emt 00:07:28]} 9. Re1
{[%clk 01:14:47]} {[%emt 00:03:31]} Bf5 {[%clk 01:07:56]} {[%emt 00:08:24]} 10.
d3 {[%clk 01:12:46]} {[%emt 00:02:31]} Ne6 {[%clk 01:03:54]} {[%emt 00:04:31]}
11. h3 {[%clk 01:08:09]} {[%emt 00:05:08]} Bxe4 {[%clk 00:58:46]} {[%emt
00:05:38]} 12. Rxe4 {[%clk 01:08:21]} {[%emt 00:00:18]} Bg7 {[%clk 00:58:45]}
{[%emt 00:00:31]} 13. Be3 {[%clk 01:04:28]} {[%emt 00:04:23]} Qd5 {[%clk
00:54:59]} {[%emt 00:04:14]} 14. c4 {[%clk 00:51:07]} {[%emt 00:13:53]} Qd7
{[%clk 00:55:16]} {[%emt 00:00:12]} 15. d4 {[%clk 00:50:50]} {[%emt 00:00:48]}
O-O-O {[%clk 00:51:19]} {[%emt 00:04:26]} 16. Qe2 {[%clk 00:43:44]} {[%emt
00:07:36]} cxd4 {[%clk 00:49:55]} {[%emt 00:01:55]} 17. Bxd4 {[%clk 00:42:29]}
{[%emt 00:01:44]} c5 {[%clk 00:43:58]} {[%emt 00:06:28]} 18. Bc3 {[%clk
00:42:46]} {[%emt 00:00:12]} Qd3 {[%clk 00:42:40]} {[%emt 00:01:47]} 19. Re1
{[%clk 00:40:27]} {[%emt 00:02:50]} Rd7 {[%clk 00:42:11]} {[%emt 00:01:00]} 20.
Qxd3 {[%clk 00:37:15]} {[%emt 00:03:42]} Rxd3 {[%clk 00:42:40]} 21. R4e3 {[%clk
00:35:52]} {[%emt 00:01:52]} Rhd8 {[%clk 00:38:57]} {[%emt 00:04:14]} 22. g3
{[%clk 00:33:47]} {[%emt 00:02:35]} Bh6 {[%clk 00:36:38]} {[%emt 00:02:48]} 23.
Rxd3 {[%clk 00:34:04]} {[%emt 00:00:14]} Rxd3 {[%clk 00:37:06]} {[%emt
00:00:01]} 24. Kg2 {[%clk 00:33:25]} {[%emt 00:01:09]} Kc7 {[%clk 00:35:30]}
{[%emt 00:02:06]} 25. Re4 {[%clk 00:31:19]} {[%emt 00:02:35]} 1/2-1/2

[Event "The Schackveckan 2023: Göteborg open"]
[Site "Göteborgs schackcentrum, Vegagatan 20, Gothenburg, Sweden"]
[Date "2023.08.12"]
[Round "5.5"]
[White "Bengtsson, Siv"]
[Black "Andersson, Stig"]
[Result "1-0"]
[TimeControl "15 minutes + 5 seconds per move from move one (Round 1 - 4) / 90 minutes + 30 seconds per move from move one (Round 5 - 8)"]
[WhiteFideId "1701673"]
[BlackFideId "1731971"]
[WhiteElo "2010"]
[BlackElo "1811"]

1. e4 {[%clk 01:30:58]} {[%emt 00:00:02]} e5 {[%clk 01:30:46]} {[%emt
00:00:15]} 2. Nf3 {[%clk 01:31:22]} {[%emt 00:00:05]} Nc6 {[%clk 01:31:02]}
{[%emt 00:00:14]} 3. Bb5 {[%clk 01:31:48]} {[%emt 00:00:05]} a6 {[%clk
01:31:13]} {[%emt 00:00:19]} 4. Ba4 {[%clk 01:32:13]} {[%emt 00:00:05]} Nf6
{[%clk 01:31:29]} {[%emt 00:00:13]} 5. d3 {[%clk 01:32:16]} {[%emt 00:00:28]}
b5 {[%clk 01:31:20]} {[%emt 00:00:39]} 6. Bb3 {[%clk 01:32:40]} {[%emt
00:00:06]} Bd6 {[%clk 01:28:23]} {[%emt 00:03:26]} 7. c3 {[%clk 01:30:26]}
{[%emt 00:02:45]} O-O {[%clk 01:27:23]} {[%emt 00:01:29]} 8. O-O {[%clk
01:29:16]} {[%emt 00:01:41]} Bb7 {[%clk 01:27:21]} {[%emt 00:00:31]} 9. Nbd2
{[%clk 01:28:24]} {[%emt 00:01:22]} Ne7 {[%clk 01:27:18]} {[%emt 00:00:33]} 10.
Re1 {[%clk 01:20:19]} {[%emt 00:08:36]} c6 {[%clk 01:26:15]} {[%emt 00:01:31]}
11. d4 {[%clk 01:17:23]} {[%emt 00:03:27]} Ng6 {[%clk 01:25:14]} {[%emt
00:01:30]} 12. Nf1 {[%clk 01:13:46]} {[%emt 00:04:08]} Bc7 {[%clk 01:24:10]}
{[%emt 00:01:34]} 13. Ng3 {[%clk 01:11:53]} {[%emt 00:02:23]} Re8 {[%clk
01:23:12]} {[%emt 00:01:29]} 14. dxe5 {[%clk 01:07:47]} {[%emt 00:04:36]} Nxe5
{[%clk 01:18:39]} {[%emt 00:05:03]} 15. Nxe5 {[%clk 01:06:18]} {[%emt
00:01:58]} Rxe5 {[%clk 01:16:51]} {[%emt 00:02:16]} 16. f4 {[%clk 01:02:25]}
{[%emt 00:04:25]} Re8 {[%clk 01:15:24]} {[%emt 00:01:57]} 17. e5 {[%clk
01:01:51]} {[%emt 00:01:04]} Nd5 {[%clk 01:10:00]} {[%emt 00:05:53]} 18. Bxd5
{[%clk 00:50:15]} {[%emt 00:12:06]} cxd5 {[%clk 01:08:47]} {[%emt 00:01:43]} 19.
Qg4 {[%clk 00:50:33]} {[%emt 00:00:14]} Re6 {[%clk 01:04:18]} {[%emt 00:04:59]}
20. Be3 {[%clk 00:32:23]} {[%emt 00:18:39]} d6 {[%clk 01:01:22]} {[%emt
00:03:25]} 21. f5 {[%clk 00:28:41]} {[%emt 00:04:13]} Rxe5 {[%clk 00:54:45]}
{[%emt 00:07:07]} 22. Nh5 {[%clk 00:23:01]} {[%emt 00:06:10]} Qf8 {[%clk
00:53:37]} {[%emt 00:01:39]} 23. Bh6 {[%clk 00:18:07]} {[%emt 00:05:23]} Bb6+
{[%clk 00:53:25]} {[%emt 00:00:42]} 24. Kh1 {[%clk 00:18:26]} {[%emt 00:00:11]}
Rae8 {[%clk 00:53:25]} {[%emt 00:00:30]} 25. Rxe5 {[%clk 00:17:07]} {[%emt
00:01:50]} Rxe5 {[%clk 00:53:29]} {[%emt 00:00:25]} 26. Bxg7 {[%clk 00:16:37]}
{[%emt 00:00:59]} Re4 {[%clk 00:53:32]} {[%emt 00:00:28]} 27. Nf6# {[%emt
00:00:30]} 1-0

[Event "The Schackveckan 2023: Göteborg open"]
[Site "Göteborgs schackcentrum, Vegagatan 20, Gothenburg, Sweden"]
[Date "2023.08.12"]
[Round "5.6"]
[White "Degerfeldt, Sven"]
[Black "Harila, Per"]
[Result "1-0"]
[TimeControl "15 minutes + 5 seconds per move from move one (Round 1 - 4) / 90 minutes + 30 seconds per move from move one (Round 5 - 8)"]
[WhiteFideId "1717430"]
[BlackFideId "1707248"]
[WhiteElo "1821"]
[BlackElo "2016"]

1. d4 {[%clk 01:30:55]} {[%emt 00:00:05]} f5 {[%clk 01:22:39]} {[%emt
00:08:22]} 2. g3 {[%clk 01:31:10]} {[%emt 00:00:13]} Nf6 {[%clk 01:22:55]}
{[%emt 00:00:15]} 3. Bg2 {[%clk 01:31:32]} {[%emt 00:00:07]} e6 {[%clk
01:22:58]} {[%emt 00:00:29]} 4. Nf3 {[%clk 01:31:45]} {[%emt 00:00:16]} d5
{[%clk 01:23:13]} {[%emt 00:00:16]} 5. O-O {[%clk 01:30:57]} {[%emt 00:01:17]}
c6 {[%clk 01:23:33]} {[%emt 00:00:10]} 6. c4 {[%clk 01:28:42]} {[%emt
00:02:44]} Bd6 {[%clk 01:23:31]} {[%emt 00:00:32]} 7. Qc2 {[%clk 01:28:20]}
{[%emt 00:00:53]} O-O {[%clk 01:23:41]} {[%emt 00:00:21]} 8. b3 {[%clk
01:26:33]} {[%emt 00:02:16]} Qe7 {[%clk 01:24:01]} {[%emt 00:00:10]} 9. Bb2
{[%clk 01:26:36]} {[%emt 00:00:27]} Nbd7 {[%clk 01:20:16]} {[%emt 00:04:15]} 10.
Nbd2 {[%clk 01:21:30]} {[%emt 00:05:35]} Ne4 {[%clk 01:20:20]} {[%emt
00:00:26]} 11. e3 {[%clk 01:20:26]} {[%emt 00:01:35]} b6 {[%clk 01:15:09]}
{[%emt 00:05:41]} 12. Ne5 {[%clk 01:19:39]} {[%emt 00:01:16]} Bb7 {[%clk
01:13:44]} {[%emt 00:01:56]} 13. Rac1 {[%clk 01:15:44]} {[%emt 00:04:25]} Rac8
{[%clk 01:14:09]} {[%emt 00:00:05]} 14. f3 {[%clk 01:12:24]} {[%emt 00:03:50]}
Nxd2 {[%clk 01:13:29]} {[%emt 00:01:11]} 15. Qxd2 {[%clk 01:12:50]} {[%emt
00:00:03]} c5 {[%clk 01:13:40]} {[%emt 00:00:19]} 16. f4 {[%clk 01:05:27]}
{[%emt 00:07:52]} Nf6 {[%clk 01:13:43]} {[%emt 00:00:28]} 17. Rfd1 {[%clk
01:02:22]} {[%emt 00:03:34]} Rfd8 {[%clk 01:13:55]} {[%emt 00:00:19]} 18. Qe2
{[%clk 01:01:21]} {[%emt 00:01:31]} Ne4 {[%clk 01:13:10]} {[%emt 00:01:16]} 19.
Bf3 {[%clk 00:38:34]} {[%emt 00:23:16]} Rc7 {[%clk 01:11:58]} {[%emt 00:01:42]}
20. Bxe4 {[%clk 00:30:47]} {[%emt 00:08:17]} fxe4 {[%clk 01:11:10]} {[%emt
00:01:19]} 21. cxd5 {[%clk 00:27:28]} {[%emt 00:03:48]} Bxe5 {[%clk 01:10:11]}
{[%emt 00:01:29]} 22. dxe5 {[%clk 00:27:29]} {[%emt 00:00:29]} Bxd5 {[%clk
01:09:08]} {[%emt 00:01:33]} 23. Qg4 {[%clk 00:26:07]} {[%emt 00:01:51]} Rf8
{[%clk 01:07:05]} {[%emt 00:02:33]} 24. Rxd5 {[%clk 00:25:54]} {[%emt
00:00:45]} exd5 {[%clk 01:07:17]} {[%emt 00:00:18]} 25. f5 {[%clk 00:26:17]}
{[%emt 00:00:07]} Kh8 {[%clk 01:02:59]} {[%emt 00:04:48]} 26. Rf1 {[%clk
00:18:00]} {[%emt 00:08:46]} c4 {[%clk 01:02:40]} {[%emt 00:00:49]} 27. bxc4
{[%clk 00:17:45]} {[%emt 00:00:44]} dxc4 {[%clk 01:02:45]} {[%emt 00:00:26]} 28.
Bd4 {[%clk 00:17:28]} {[%emt 00:00:47]} c3 {[%clk 01:02:36]} {[%emt 00:00:39]}
29. f6 {[%clk 00:16:06]} {[%emt 00:01:52]} gxf6 {[%clk 01:02:34]} {[%emt
00:00:32]} 30. exf6 {[%clk 00:16:14]} {[%emt 00:00:22]} Qf7 {[%clk 01:02:59]}
{[%emt 00:00:06]} 31. Qg7+ {[%clk 00:16:24]} {[%emt 00:00:19]} Qe8 {[%clk
01:02:09]} {[%emt 00:00:42]} 1-0

[Event "The Schackveckan 2023: Göteborg open"]
[Site "Göteborgs schackcentrum, Vegagatan 20, Gothenburg, Sweden"]
[Date "2023.08.12"]
[Round "5.7"]
[White "Sandberg, Lucas"]
[Black "Ottgard, Andreas"]
[Result "1-0"]
[TimeControl "15 minutes + 5 seconds per move from move one (Round 1 - 4) / 90 minutes + 30 seconds per move from move one (Round 5 - 8)"]
[WhiteFideId "1773712"]
[BlackFideId "1730592"]
[WhiteElo "1311"]
[BlackElo "1874"]

1. c4 {[%clk 01:30:59]} Nf6 {[%clk 01:29:47]} {[%emt 00:01:13]} 2. Nc3 {[%clk
01:30:42]} {[%emt 00:00:48]} g6 {[%clk 01:29:12]} {[%emt 00:01:03]} 3. d4
{[%clk 01:30:49]} {[%emt 00:00:24]} c5 {[%clk 01:27:40]} {[%emt 00:02:01]} 4.
d5 {[%clk 01:29:36]} {[%emt 00:01:45]} d6 {[%clk 01:26:59]} {[%emt 00:01:10]} 5.
e4 {[%clk 01:30:01]} {[%emt 00:00:06]} Bg7 {[%clk 01:27:18]} {[%emt 00:00:11]}
6. h3 {[%clk 01:29:11]} {[%emt 00:01:20]} Na6 {[%clk 01:25:11]} {[%emt
00:02:37]} 7. Bg5 {[%clk 01:26:48]} {[%emt 00:02:52]} O-O {[%clk 01:21:51]}
{[%emt 00:03:50]} 8. Qd2 {[%clk 01:26:10]} {[%emt 00:01:09]} Nc7 {[%clk
01:15:27]} {[%emt 00:06:53]} 9. Bd3 {[%clk 01:24:11]} {[%emt 00:02:29]} a6
{[%clk 01:10:54]} {[%emt 00:05:03]} 10. a4 {[%clk 01:22:39]} {[%emt 00:02:02]}
e5 {[%clk 01:04:32]} {[%emt 00:06:51]} 11. Nge2 {[%clk 01:20:16]} {[%emt
00:02:54]} Rb8 {[%clk 01:00:48]} {[%emt 00:04:15]} 12. a5 {[%clk 01:19:22]}
{[%emt 00:01:23]} b5 {[%clk 00:57:20]} {[%emt 00:03:57]} 13. axb6 {[%clk
01:17:38]} {[%emt 00:02:15]} Rxb6 {[%clk 00:57:32]} {[%emt 00:00:18]} 14. g4
{[%clk 01:15:21]} {[%emt 00:02:48]} Bd7 {[%clk 00:52:39]} {[%emt 00:05:22]} 15.
Ng3 {[%clk 01:10:20]} {[%emt 00:05:31]} Qb8 {[%clk 00:50:27]} {[%emt 00:02:42]}
16. Nd1 {[%clk 01:09:39]} {[%emt 00:01:10]} Rb4 {[%clk 00:48:49]} {[%emt
00:02:06]} 17. Bh6 {[%clk 01:02:29]} {[%emt 00:07:44]} Ba4 {[%clk 00:43:21]}
{[%emt 00:05:57]} 18. Bxg7 {[%clk 01:01:05]} {[%emt 00:01:53]} Kxg7 {[%clk
00:43:33]} {[%emt 00:00:18]} 19. Nf5+ {[%clk 00:59:47]} {[%emt 00:01:49]} Kh8
{[%clk 00:35:49]} {[%emt 00:08:14]} 20. Qh6 {[%clk 00:57:46]} {[%emt 00:02:32]}
Rg8 {[%clk 00:35:51]} {[%emt 00:00:27]} 21. Nxd6 {[%clk 00:58:01]} {[%emt
00:00:15]} Qf8 {[%clk 00:34:09]} {[%emt 00:02:11]} 22. Qxf8 {[%emt 00:00:43]}
Rxf8 {[%clk 00:34:24]} {[%emt 00:00:12]} 23. Nc3 {[%clk 00:55:47]} {[%emt
00:02:35]} Bd7 {[%clk 00:33:40]} {[%emt 00:01:15]} 24. Ra5 {[%clk 00:55:45]}
{[%emt 00:00:32]} Rxb2 {[%clk 00:22:06]} {[%emt 00:12:03]} 25. Rxc5 {[%emt
00:00:20]} Nce8 {[%clk 00:15:05]} {[%emt 00:07:29]} 26. Nxe8 {[%clk 00:55:34]}
{[%emt 00:00:53]} Rxe8 {[%clk 00:14:32]} {[%emt 00:01:03]} 27. Ra5 {[%clk
00:53:14]} {[%emt 00:02:50]} Rb3 {[%clk 00:12:32]} {[%emt 00:02:30]} 28. Kd2
{[%clk 00:53:36]} {[%emt 00:00:08]} Rb2+ {[%clk 00:10:47]} {[%emt 00:02:14]} 29.
Bc2 {[%clk 00:53:52]} {[%emt 00:00:15]} Rc8 {[%clk 00:10:28]} {[%emt 00:00:50]}
30. c5 {[%clk 00:52:31]} {[%emt 00:01:50]} Bb5 {[%clk 00:09:32]} {[%emt
00:01:25]} 31. c6 {[%clk 00:51:43]} {[%emt 00:01:19]} Ne8 {[%clk 00:08:26]}
{[%emt 00:01:37]} 32. Nxb5 {[%clk 00:51:12]} {[%emt 00:01:02]} Rxb5 {[%clk
00:07:56]} {[%emt 00:00:57]} 33. Rxa6 {[%clk 00:50:32]} {[%emt 00:01:11]} Nd6
{[%clk 00:07:45]} {[%emt 00:00:41]} 34. Bd3 {[%clk 00:50:29]} {[%emt 00:00:33]}
Rb2+ {[%clk 00:07:37]} {[%emt 00:00:39]} 35. Ke3 {[%clk 00:49:45]} {[%emt
00:01:13]} Rb3 {[%clk 00:04:26]} {[%emt 00:03:41]} 36. Rc1 {[%clk 00:49:18]}
{[%emt 00:00:57]} f5 {[%clk 00:02:03]} {[%emt 00:02:53]} 37. f3 {[%clk
00:48:57]} {[%emt 00:00:52]} f4+ {[%clk 00:00:47]} {[%emt 00:01:45]} 38. Kd2
{[%clk 00:49:22]} {[%emt 00:00:05]} Rb2+ {[%clk 00:00:51]} {[%emt 00:00:27]} 39.
Rc2 {[%clk 00:49:46]} {[%emt 00:00:06]} Rb1 {[%clk 00:00:45]} {[%emt 00:00:35]}
40. c7 {[%clk 00:50:01]} {[%emt 00:00:16]} Ne8 {[%clk 00:00:34]} {[%emt
00:00:41]} 41. d6 {[%clk 00:50:15]} {[%emt 00:00:15]} Nf6 {[%clk 00:00:36]}
{[%emt 00:00:28]} 42. Bc4 {[%clk 00:50:15]} {[%emt 00:00:30]} 1-0

[Event "The Schackveckan 2023: Göteborg open"]
[Site "Göteborgs schackcentrum, Vegagatan 20, Gothenburg, Sweden"]
[Date "2023.08.12"]
[Round "5.8"]
[White "Lindholm, Marcus"]
[Black "Wengholm, Anders"]
[Result "0-1"]
[TimeControl "15 minutes + 5 seconds per move from move one (Round 1 - 4) / 90 minutes + 30 seconds per move from move one (Round 5 - 8)"]
[WhiteFideId "1743473"]
[BlackFideId "1704818"]
[WhiteElo "1708"]
[BlackElo "2155"]

1. d4 {[%clk 01:30:55]} {[%emt 00:00:04]} d6 {[%clk 01:29:28]} {[%emt
00:01:33]} 2. e4 {[%clk 01:31:14]} {[%emt 00:00:10]} Nf6 {[%clk 01:29:52]}
{[%emt 00:00:06]} 3. Nc3 {[%clk 01:31:35]} {[%emt 00:00:09]} g6 {[%clk
01:29:38]} {[%emt 00:00:45]} 4. Bg5 {[%clk 01:31:58]} {[%emt 00:00:07]} Bg7
{[%clk 01:27:22]} {[%emt 00:02:46]} 5. e5 {[%clk 01:32:13]} {[%emt 00:00:15]}
dxe5 {[%clk 01:23:45]} {[%emt 00:04:07]} 6. dxe5 {[%clk 01:31:33]} {[%emt
00:01:10]} Ng4 {[%clk 01:23:03]} {[%emt 00:01:12]} 7. Qxd8+ {[%clk 01:31:47]}
{[%emt 00:00:16]} Kxd8 {[%clk 01:23:32]} {[%emt 00:00:02]} 8. h3 {[%clk
01:30:56]} {[%emt 00:01:20]} Nxe5 {[%clk 01:23:43]} {[%emt 00:00:20]} 9. O-O-O+
{[%clk 01:31:17]} {[%emt 00:00:08]} Bd7 {[%clk 01:22:06]} {[%emt 00:02:07]} 10.
f4 {[%clk 01:23:40]} {[%emt 00:08:07]} Nec6 {[%clk 01:22:26]} {[%emt 00:00:09]}
11. Nd5 {[%clk 01:21:26]} {[%emt 00:02:45]} Re8 {[%clk 01:20:35]} {[%emt
00:02:21]} 12. Nf3 {[%clk 01:19:42]} {[%emt 00:02:14]} Kc8 {[%clk 01:18:37]}
{[%emt 00:02:28]} 13. Bc4 {[%clk 01:14:41]} {[%emt 00:05:31]} f6 {[%clk
00:55:20]} {[%emt 00:23:47]} 14. Bh4 {[%clk 01:14:13]} {[%emt 00:00:57]} Na5
{[%clk 00:55:20]} {[%emt 00:00:31]} 15. Be2 {[%clk 01:10:02]} {[%emt 00:04:41]}
c6 {[%clk 00:50:11]} {[%emt 00:05:40]} 16. Nc3 {[%clk 01:04:01]} {[%emt
00:06:30]} b5 {[%clk 00:33:24]} {[%emt 00:17:17]} 17. a4 {[%clk 00:48:08]}
{[%emt 00:16:23]} a6 {[%clk 00:31:59]} {[%emt 00:01:55]} 18. Rd2 {[%clk
00:47:24]} {[%emt 00:01:13]} Nb7 {[%clk 00:30:15]} {[%emt 00:02:15]} 19. Bf2
{[%clk 00:43:31]} {[%emt 00:04:23]} e5 {[%clk 00:20:30]} {[%emt 00:10:16]} 20.
Be3 {[%clk 00:37:24]} {[%emt 00:06:36]} e4 {[%clk 00:20:39]} {[%emt 00:00:21]}
21. Nd4 {[%clk 00:36:52]} {[%emt 00:01:02]} Kc7 {[%clk 00:18:43]} {[%emt
00:02:27]} 22. Nb3 {[%clk 00:36:30]} {[%emt 00:00:51]} Be6 {[%clk 00:15:02]}
{[%emt 00:04:11]} 23. Nd4 {[%clk 00:27:16]} {[%emt 00:09:43]} f5 {[%clk
00:07:04]} {[%emt 00:08:29]} 24. g4 {[%clk 00:24:43]} {[%emt 00:03:02]} Nd7
{[%clk 00:07:04]} {[%emt 00:00:31]} 25. gxf5 {[%clk 00:24:40]} {[%emt
00:00:33]} gxf5 {[%clk 00:07:25]} {[%emt 00:00:09]} 26. Bh5 {[%clk 00:23:22]}
{[%emt 00:01:48]} Re7 {[%clk 00:07:47]} {[%emt 00:00:07]} 27. Nxe6+ {[%clk
00:23:04]} {[%emt 00:00:49]} Rxe6 {[%clk 00:08:07]} {[%emt 00:00:10]} 28. Rg1
{[%clk 00:23:30]} {[%emt 00:00:03]} Bf6 {[%clk 00:08:13]} {[%emt 00:00:25]} 29.
Ne2 {[%clk 00:22:49]} {[%emt 00:01:11]} c5 {[%clk 00:07:14]} {[%emt 00:01:30]}
30. Ng3 {[%clk 00:22:12]} {[%emt 00:01:06]} Nd6 {[%clk 00:06:03]} {[%emt
00:01:41]} 31. Rgd1 {[%clk 00:21:57]} {[%emt 00:00:45]} Rd8 {[%clk 00:05:07]}
{[%emt 00:01:27]} 32. Rd5 {[%clk 00:20:10]} {[%emt 00:02:15]} Nc4 {[%clk
00:03:02]} {[%emt 00:02:36]} 33. Bxc5 {[%clk 00:17:20]} {[%emt 00:03:20]} Nxb2
{[%clk 00:03:14]} {[%emt 00:00:19]} 34. Bd6+ {[%clk 00:10:06]} {[%emt
00:07:43]} Rxd6 {[%clk 00:02:55]} {[%emt 00:00:50]} 35. Rxd6 {[%clk 00:10:19]}
{[%emt 00:00:16]} Nxd1 {[%clk 00:03:23]} {[%emt 00:00:02]} 36. Rxd1 {[%clk
00:10:41]} {[%emt 00:00:08]} bxa4 {[%clk 00:03:38]} {[%emt 00:00:15]} 37. Kb1
{[%clk 00:10:15]} {[%emt 00:00:57]} Rb8+ {[%clk 00:03:28]} {[%emt 00:00:39]} 38.
Ka2 {[%clk 00:10:38]} {[%emt 00:00:07]} Rb2+ {[%clk 00:03:50]} {[%emt
00:00:08]} 39. Ka3 {[%clk 00:10:50]} {[%emt 00:00:18]} Rxc2 {[%clk 00:04:11]}
{[%emt 00:00:09]} 40. Nxf5 {[%clk 00:10:19]} {[%emt 00:01:00]} Rc5 {[%clk
00:03:34]} {[%emt 00:01:08]} 41. Bg4 {[%clk 00:10:36]} {[%emt 00:00:13]} h5
{[%clk 00:03:37]} {[%emt 00:00:27]} 42. Bxh5 {[%clk 00:10:27]} {[%emt
00:00:39]} Rxf5 {[%clk 00:03:36]} {[%emt 00:00:30]} 43. Bg4 {[%clk 00:10:52]}
{[%emt 00:00:06]} Rxf4 {[%clk 00:03:40]} {[%emt 00:00:27]} 44. Bxd7 {[%clk
00:05:23]} {[%emt 00:05:57]} Be7+ {[%clk 00:02:57]} {[%emt 00:01:13]} 45. Ka2
{[%clk 00:04:27]} {[%emt 00:01:26]} Rf2+ {[%clk 00:02:25]} {[%emt 00:01:02]} 46.
Kb1 {[%clk 00:04:40]} {[%emt 00:00:18]} a3 {[%clk 00:02:51]} {[%emt 00:00:05]}
47. Be6 {[%clk 00:04:38]} {[%emt 00:00:32]} Rb2+ {[%clk 00:03:01]} {[%emt
00:00:19]} 48. Ka1 {[%clk 00:04:18]} {[%emt 00:00:49]} Bf6 {[%clk 00:03:11]}
{[%emt 00:00:21]} 49. Rd7+ {[%clk 00:03:40]} {[%emt 00:01:08]} Kc6 {[%clk
00:03:23]} {[%emt 00:00:18]} 50. Rf7 {[%clk 00:02:51]} {[%emt 00:01:18]} Bc3
{[%clk 00:03:17]} {[%emt 00:00:36]} 51. Ba2 {[%clk 00:01:22]} {[%emt 00:01:59]}
Rb8# {[%clk 00:03:30]} {[%emt 00:00:16]} 0-1